bitfinex/quotes_ETHUSD_20250323
["timestamp","ask_amount","ask_price","bid_price","bid_amount"]
[1742732633866,9.93067,2014.0,2013.8,4.661]
[1742732634061,3.0,2014.0,2013.8,4.661]
[1742732634266,7.96525,2014.0,2013.8,4.661]
[1742732635247,7.96525,2014.0,2013.9,0.20016393]
[1742732635453,7.96525,2014.0,2013.8,4.661]
[1742732635675,7.96525,2014.0,2013.9,0.20016393]
[1742732636084,7.96525,2014.0,2013.8,4.661]
[1742732636271,7.96525,2014.0,2013.9,0.20016393]
[1742732636767,7.96525,2014.0,2013.8,4.661]
[1742732636972,7.96525,2014.0,2013.9,0.20016393]
[1742732637279,7.96525,2014.0,2013.8,4.661]
[1742732637482,7.96525,2014.0,2013.9,0.20016393]
[1742732638259,7.96525,2014.0,2013.8,4.661]
[1742732638461,7.96525,2014.0,2013.9,0.20016393]
[1742732638661,7.96525,2014.0,2013.8,4.661]
[1742732638973,7.96525,2014.0,2013.9,0.20016393]
[1742732639286,7.96525,2014.0,2013.8,4.661]
[1742732639464,7.96525,2014.0,2013.9,0.20016393]
[1742732639783,7.96525,2014.0,2013.8,4.661]
[1742732640079,7.96525,2014.0,2013.9,0.20016393]
[1742732640463,7.96525,2014.0,2013.8,4.661]
[1742732640666,7.96525,2014.0,2013.9,0.20016393]
[1742732640865,4.9656,2013.9,2013.6,4.661]
[1742732641184,4.9656,2013.9,2013.7,0.20066117]
[1742732641560,4.9656,2013.9,2013.6,4.661]
[1742732641759,4.9656,2013.9,2013.8,0.20035779]
[1742732641964,4.9656,2013.9,2013.7,0.20060642]
[1742732642164,4.9656,2013.9,2013.8,0.20035779]
[1742732642581,4.9656,2013.9,2013.6,4.661]
[1742732642786,4.9656,2013.9,2013.8,0.20035779]
[1742732642982,4.9656,2013.9,2013.7,0.20060642]
[1742732643160,4.9656,2013.9,2013.8,0.20035779]
[1742732643575,4.9656,2013.9,2013.6,9.62722]
[1742732643774,4.9656,2013.9,2013.8,0.20035779]
[1742732644398,4.96611,2013.7,2013.5,30.916]
[1742732649023,4.96611,2013.7,2013.5,4.661]
[1742732650205,4.96611,2013.7,2013.6,0.19692211]
[1742732650378,4.96583,2013.8,2013.6,0.19692211]
[1742732651111,9.93181,2013.8,2013.6,0.19692211]
[1742732651413,4.96583,2013.8,2013.6,0.19692211]
[1742732651575,9.93175,2013.8,2013.6,0.19692211]
[1742732652312,4.96583,2013.8,2013.6,0.19692211]
[1742732652686,3.0,2013.8,2013.6,1.01822211]
[1742732652879,3.0,2013.8,2013.6,5.98444211]
[1742732653279,3.0,2013.9,2013.6,5.98444211]
[1742732655201,7.96554,2013.9,2013.6,5.98444211]
[1742732656708,7.96554,2013.9,2013.6,1.01822211]
[1742732657088,4.96575,2013.8,2013.6,0.19692211]
[1742732657290,4.96575,2013.8,2013.6,4.662]
[1742732657488,4.96575,2013.8,2013.7,0.1847296]
[1742732657716,4.96575,2013.8,2013.6,4.662]
[1742732657882,4.96575,2013.8,2013.7,0.18470227]
[1742732658205,4.96575,2013.8,2013.6,4.662]
[1742732658411,4.96575,2013.8,2013.7,0.18470227]
[1742732658614,4.96575,2013.8,2013.6,4.662]
[1742732659001,4.96575,2013.8,2013.7,0.18470227]
[1742732659379,4.96575,2013.8,2013.6,4.662]
[1742732659592,4.96575,2013.8,2013.7,0.18470227]
[1742732659791,7.96553,2013.9,2013.7,0.18470227]
[1742732660008,7.96553,2013.9,2013.6,4.662]
[1742732660310,7.96553,2013.9,2013.7,0.18470227]
[1742732660520,7.96553,2013.9,2013.7,0.97430227]
[1742732660678,7.96553,2013.9,2013.7,0.7896]
[1742732660879,7.96553,2013.9,2013.8,0.18445364]
[1742732662819,4.96526,2014.0,2013.8,0.18445364]
[1742732663309,4.96548,2013.9,2013.8,0.18445364]
[1742732665818,4.96526,2014.0,2013.8,0.18445364]
[1742732666126,4.96512,2014.1,2013.8,0.18445364]
[1742732666283,9.93032,2014.1,2013.8,0.18445364]
[1742732668209,4.96512,2014.1,2013.8,0.18445364]
[1742732673225,5.74406,2014.0,2013.8,0.18445364]
[1742732674220,4.96548,2013.9,2013.8,0.18445364]
[1742732674418,7.96548,2013.9,2013.8,0.18445364]
[1742732675834,3.0,2013.9,2013.8,0.18445364]
[1742732677898,3.0,2013.9,2013.6,9.62804]
[1742732678130,3.0,2013.9,2013.7,0.1836657]
[1742732678499,3.0,2013.9,2013.6,9.62804]
[1742732678700,3.0,2013.9,2013.7,0.1836657]
[1742732678921,3.0,2013.9,2013.6,9.62804]
[1742732679127,3.0,2013.9,2013.8,0.18341707]
[1742732679329,3.0,2013.9,2013.7,0.1836657]
[1742732679525,3.0,2013.9,2013.8,0.18341707]
[1742732679832,3.0,2013.9,2013.6,9.67769598]
[1742732680201,3.0,2013.9,2013.7,0.1836657]
[1742732680601,3.0,2013.9,2013.6,9.67768598]
[1742732680806,3.0,2013.9,2013.7,0.1836657]
[1742732681001,3.0,2013.9,2013.6,9.62803]
[1742732681196,3.0,2013.9,2013.7,0.1836657]
[1742732681418,3.0,2013.9,2013.6,9.62803]
[1742732681635,3.0,2013.9,2013.7,0.1836657]
[1742732681812,3.0,2013.9,2013.6,9.67768598]
[1742732682009,3.0,2013.9,2013.7,0.1836657]
[1742732682233,3.0,2013.9,2013.6,9.62803]
[1742732682414,3.0,2013.9,2013.7,0.1836657]
[1742732682629,4.96526,2014.0,2013.6,9.62803]
[1742732682930,4.96526,2014.0,2013.7,0.1836657]
[1742732683135,3.0,2014.0,2013.7,5.1496257]
[1742732683334,3.0,2014.0,2013.7,4.96596]
[1742732683537,3.0,2014.0,2013.8,0.18341707]
[1742732690938,3.0,2014.0,2013.6,14.59427]
[1742732691150,3.0,2014.0,2013.9,0.1832503]
[1742732691366,3.0,2014.0,2013.6,14.59427]
[1742732691844,3.0,2014.0,2013.7,0.18374753]
[1742732692017,3.0,2014.0,2013.6,9.6281]
[1742732692217,3.0,2014.0,2013.7,0.18374753]
[1742732692428,3.0,2014.0,2013.6,9.6281]
[1742732692630,3.0,2014.0,2013.7,0.18374753]
[1742732692831,3.0,2014.0,2013.6,9.6281]
[1742732693042,3.0,2014.0,2013.7,0.18374753]
[1742732693246,3.0,2014.0,2013.6,9.6281]
[1742732693452,3.0,2014.0,2013.7,0.18374753]
[1742732693621,3.0,2014.0,2013.6,9.6281]
[1742732693824,3.0,2014.0,2013.7,0.18374753]
[1742732694045,3.0,2014.0,2013.6,9.6281]
[1742732694354,3.0,2014.0,2013.7,5.14972753]
[1742732697023,3.0,2014.1,2013.7,5.14972753]
[1742732697224,7.96517,2014.1,2013.7,5.14972753]
[1742732697445,12.93037,2014.1,2013.7,0.18374753]
[1742732697656,12.93037,2014.1,2013.6,9.62816]
[1742732697824,12.93037,2014.1,2013.7,0.18342028]
[1742732698019,3.0,2014.3,2013.8,0.83485558]
[1742732698228,3.0,2014.3,2013.9,5.14827305]
[1742732698552,12.92922,2014.3,2013.9,0.18292305]
[1742732698756,0.86919046,2014.2,2013.9,0.18292305]
[1742732698957,7.96453,2014.3,2013.8,5.80050139]
[1742732699160,7.96453,2014.3,2014.0,0.18267447]
[1742732699467,4.96453,2014.3,2014.1,0.18242591]
[1742732699759,7.96453,2014.3,2013.8,10.71646]
[1742732699926,7.96453,2014.3,2014.2,0.18217738]
[1742732700126,9.43489048,2014.3,2013.8,10.71646]
[1742732700364,7.96453,2014.3,2014.2,0.18217738]
[1742732700538,7.96453,2014.3,2013.9,4.96546]
[1742732700734,7.96453,2014.3,2014.2,0.18217738]
[1742732700943,7.96453,2014.3,2013.9,4.96546]
[1742732701149,7.96453,2014.3,2014.2,0.18217738]
[1742732701460,4.47036048,2014.3,2014.2,0.18217738]
[1742732701658,4.47036048,2014.3,2013.9,4.96546]
[1742732701865,3.0,2014.3,2014.0,0.18267447]
[1742732702562,7.96454,2014.3,2014.0,0.18267447]
[1742732703067,7.96454,2014.3,2013.8,5.75086]
[1742732703381,7.96454,2014.3,2013.9,0.18292305]
[1742732703865,7.96454,2014.3,2014.0,0.18267447]
[1742732704028,9.43490148,2014.3,2013.8,5.75086]
[1742732704234,7.96454,2014.3,2013.9,0.18292305]
[1742732704428,7.96454,2014.3,2013.8,5.75086]
[1742732704634,7.96454,2014.3,2013.9,0.18292305]
[1742732704830,7.96454,2014.3,2013.8,5.75086]
[1742732705034,7.96454,2014.3,2013.9,0.18267763]
[1742732705235,7.96454,2014.3,2013.8,5.75086]
[1742732705434,7.96454,2014.3,2013.9,0.18267763]
[1742732705662,7.96454,2014.3,2013.8,5.75086]
[1742732705863,7.96454,2014.3,2013.9,0.18267763]
[1742732706066,7.96454,2014.3,2013.8,5.75086]
[1742732706243,7.96454,2014.3,2013.9,0.18267763]
[1742732706444,7.96454,2014.3,2013.9,4.96546]
[1742732706631,3.0,2014.3,2014.0,5.14750905]
[1742732706840,3.0,2014.3,2014.0,0.18242905]
[1742732707371,7.96451,2014.3,2014.0,0.18242905]
[1742732709386,3.0,2014.3,2014.0,0.18242905]
[1742732710165,3.0,2014.3,2014.0,9.80757905]
[1742732712273,3.0,2014.3,2014.0,9.80749905]
[1742732712489,3.0,2014.3,2014.2,4.96475]
[1742732712787,0.7872,2014.7,2014.4,4.96416]
[1742732712948,5.75036,2014.9,2014.4,10.38836]
[1742732713143,5.75036,2014.9,2014.5,0.18053197]
[1742732713792,5.75036,2014.9,2014.5,5.14451197]
[1742732714254,3.0,2014.8,2014.5,5.14451197]
[1742732714978,4.96278,2015.0,2014.5,10.10838197]
[1742732715178,3.0,2014.9,2014.5,10.10838197]
[1742732715975,3.0,2014.9,2014.5,0.23016633]
[1742732716278,3.0,2015.0,2014.7,0.7643]
[1742732716477,3.0,2015.0,2014.8,0.17686967]
[1742732716877,7.9628,2015.0,2014.8,0.17686967]
[1742732720095,12.92578,2015.0,2014.8,0.17686967]
[1742732720302,12.92578,2015.0,2014.5,5.74003]
[1742732720502,12.92578,2015.0,2014.6,0.17736646]
[1742732720798,4.96306,2014.9,2014.6,0.17736646]
[1742732721096,7.9628,2015.0,2014.6,0.17736646]
[1742732721396,4.96312,2014.9,2014.6,0.17736646]
[1742732722696,7.9628,2015.0,2014.6,0.17736646]
[1742732723864,7.9628,2015.0,2014.6,5.14110646]
[1742732724910,12.92577,2015.0,2014.6,5.14110646]
[1742732729087,12.92578,2015.0,2014.6,5.14110646]
[1742732730193,4.96303,2014.9,2014.6,5.14110646]
[1742732730916,7.9628,2015.0,2014.6,5.14110646]
[1742732731213,12.92576,2015.0,2014.6,5.14110646]
[1742732731725,4.96305,2014.9,2014.6,5.14110646]
[1742732732746,4.96305,2014.9,2014.6,0.17736646]
[1742732736966,4.96305,2014.9,2014.6,26.42236646]
[1742732737665,7.96284,2015.0,2014.6,31.38610646]
[1742732737823,12.92586,2015.0,2014.6,31.38610646]
[1742732738932,12.92578,2015.0,2014.6,31.38610646]
[1742732739428,7.96284,2015.0,2014.6,31.38610646]
[1742732740319,7.96284,2015.0,2014.6,26.42236646]
[1742732743025,12.92582,2015.0,2014.6,26.42236646]
[1742732743225,12.92582,2015.0,2014.6,0.17736646]
[1742732744151,7.96284,2015.0,2014.6,0.17736646]
[1742732745361,12.92583,2015.0,2014.6,0.17736646]
[1742732746453,7.96284,2015.0,2014.6,0.45249023]
[1742732746653,7.96284,2015.0,2014.7,0.7562]
[1742732747061,7.96284,2015.0,2014.8,0.17684242]
[1742732747229,12.92582,2015.0,2014.8,0.17684242]
[1742732747426,7.96284,2015.0,2014.8,0.17684242]
[1742732748567,12.9258,2015.0,2014.8,0.17684242]
[1742732749066,12.92573,2015.0,2014.8,0.17684242]
[1742732749240,7.96284,2015.0,2014.8,0.17684242]
[1742732749571,12.92581,2015.0,2014.8,0.17684242]
[1742732749740,12.92585,2015.0,2014.8,0.17684242]
[1742732749936,4.96302,2014.9,2014.8,0.17684242]
[1742732750140,7.96302,2014.9,2014.8,0.17684242]
[1742732750554,4.96351,2014.7,2014.6,26.244]
[1742732752170,4.96351,2014.7,2014.5,4.657]
[1742732752474,4.96334,2014.8,2014.5,4.657]
[1742732752671,3.8149,2014.9,2014.5,9.6209]
[1742732752844,3.8149,2014.9,2014.6,0.7593]
[1742732752845,7.96305,2014.9,2014.6,0.7593]
[1742732753245,4.96327,2014.8,2014.6,0.7593]
[1742732753875,4.96327,2014.8,2014.5,4.657]
[1742732755173,4.96327,2014.8,2014.6,0.17758451]
[1742732756182,8.77799,2014.9,2014.6,0.17758451]
[1742732756480,3.0,2014.9,2014.7,0.7593]
[1742732756684,3.0,2014.9,2014.8,0.17708772]
[1742732768672,7.96302,2014.9,2014.8,0.17708772]
[1742732769099,7.96302,2014.9,2014.6,26.244]
[1742732769269,7.96302,2014.9,2014.8,0.17697868]
[1742732769479,7.96302,2014.9,2014.7,0.17722706]
[1742732769680,8.72472,2014.9,2014.8,0.17697868]
[1742732769891,4.9633,2014.8,2014.6,26.244]
[1742732770092,4.9633,2014.8,2014.7,0.17630042]
[1742732772907,8.72479,2014.9,2014.7,0.17630042]
[1742732774171,8.72479,2014.9,2014.5,36.6321]
[1742732774375,8.72479,2014.9,2014.6,0.17668509]
[1742732774575,13.68799,2014.9,2014.6,0.17668509]
[1742732775403,4.9633,2014.8,2014.6,0.17668509]
[1742732778379,4.96351,2014.7,2014.6,0.17668509]
[1742732780499,7.96351,2014.7,2014.6,0.17668509]
[1742732795622,3.0,2014.7,2014.6,0.17668509]
[1742732798222,7.96351,2014.7,2014.6,0.17668509]
[1742732807019,3.0,2014.7,2014.6,0.17668509]
[1742732823963,7.96351,2014.7,2014.6,0.17668509]
[1742732828141,8.77131,2014.7,2014.6,0.17668509]
[1742732828337,4.96379,2014.6,2014.4,30.9]
[1742732828765,4.96401,2014.5,2014.4,26.246]
[1742732828964,8.77181,2014.5,2014.4,26.246]
[1742732829266,10.641722,2014.5,2014.4,26.246]
[1742732830368,10.641722,2014.5,2014.4,26.42350905]
[1742732832269,10.641722,2014.5,2014.4,0.17750905]
[1742732832472,4.96495,2014.2,2013.9,5.4557]
[1742732832834,4.96495,2014.2,2013.9,4.654]
[1742732834371,5.77232,2014.3,2013.9,9.61944]
[1742732834372,4.96452,2014.3,2013.9,9.61944]
[1742732835169,9.92924,2014.3,2013.9,4.654]
[1742732835387,4.96477,2014.2,2013.9,4.654]
[1742732835535,4.96452,2014.3,2013.9,4.654]
[1742732836473,7.96431,2014.4,2014.0,4.96522]
[1742732836636,7.96431,2014.4,2013.9,9.61935]
[1742732836841,12.92881,2014.4,2013.9,9.61935]
[1742732837258,4.96451,2014.3,2013.9,9.61935]
[1742732837581,12.92877,2014.4,2013.9,9.61935]
[1742732837753,7.96431,2014.4,2013.9,9.61935]
[1742732837944,7.96431,2014.4,2013.9,4.654]
[1742732837945,9.92921,2014.3,2013.9,4.654]
[1742732838141,4.96479,2014.2,2013.9,4.654]
[1742732838965,5.73311,2014.3,2013.9,4.654]
[1742732839343,0.7686,2014.3,2013.9,9.61936]
[1742732839544,7.96427,2014.4,2013.9,9.61936]
[1742732840378,12.92873,2014.4,2013.9,9.61936]
[1742732841178,4.96455,2014.3,2013.9,9.61936]
[1742732845278,4.96455,2014.3,2014.0,0.17940271]
[1742732849476,7.96427,2014.4,2014.0,0.17940271]
[1742732849645,7.96427,2014.4,2014.0,0.99300271]
[1742732850884,12.92872,2014.4,2014.0,0.99300271]
[1742732851052,7.96427,2014.4,2014.0,0.99300271]
[1742732852160,3.0,2014.4,2014.0,5.95813271]
[1742732852364,2.99513712,2014.4,2014.0,5.95813271]
[1742732853774,2.99513712,2014.4,2014.1,4.96496]
[1742732854155,2.99513712,2014.4,2014.2,0.18021399]
[1742732854360,7.95949712,2014.4,2014.2,0.18021399]
[1742732854690,8.79129712,2014.4,2014.3,0.17971999]
[1742732854855,4.96459,2014.3,2014.0,4.654]
[1742732855055,4.96459,2014.3,2014.1,0.18021702]
[1742732855460,9.92933,2014.3,2014.1,0.18021702]
[1742732856465,4.96459,2014.3,2014.1,0.18021702]
[1742732860065,4.96525,2014.0,2013.8,26.247]
[1742732860269,7.96525,2014.0,2013.9,0.1810686]
[1742732860468,7.96525,2014.0,2013.8,26.247]
[1742732860672,7.96525,2014.0,2013.9,0.1810686]
[1742732860884,7.96525,2014.0,2013.8,26.247]
[1742732861088,7.96525,2014.0,2013.9,0.1810686]
[1742732861397,7.96525,2014.0,2013.8,26.247]
[1742732861582,7.96525,2014.0,2013.9,0.1810686]
[1742732861982,7.96525,2014.0,2013.8,26.247]
[1742732862184,7.96525,2014.0,2013.9,0.1810686]
[1742732862583,7.96525,2014.0,2013.8,26.247]
[1742732862906,7.96525,2014.0,2013.9,0.1810686]
[1742732863207,7.96525,2014.0,2013.8,26.247]
[1742732863371,7.96525,2014.0,2013.9,0.1810686]
[1742732864104,7.96525,2014.0,2013.8,26.247]
[1742732864305,7.96525,2014.0,2013.9,0.1810686]
[1742732864484,7.96525,2014.0,2013.8,26.247]
[1742732864700,7.96525,2014.0,2013.9,0.1810686]
[1742732864887,7.96525,2014.0,2013.8,26.247]
[1742732865083,7.96525,2014.0,2013.9,0.1810686]
[1742732865285,7.96525,2014.0,2013.8,26.247]
[1742732865486,7.96525,2014.0,2013.9,0.18221393]
[1742732865686,7.96525,2014.0,2013.8,26.247]
[1742732865886,7.96525,2014.0,2013.9,0.18300477]
[1742732866094,7.96525,2014.0,2013.8,26.247]
[1742732866271,7.96525,2014.0,2013.9,0.18300477]
[1742732866486,9.43583173,2014.0,2013.6,5.4438]
[1742732866681,7.96525,2014.0,2013.7,0.18350201]
[1742732866991,7.96525,2014.0,2013.6,5.4438]
[1742732867205,7.96525,2014.0,2013.8,0.18325338]
[1742732867376,7.96525,2014.0,2013.7,0.18350201]
[1742732867577,3.0,2014.0,2013.9,0.18300477]
[1742732868080,3.0,2014.0,2013.6,5.4438]
[1742732868282,3.0,2014.0,2013.7,0.18350201]
[1742732868580,3.0,2014.0,2013.6,5.4438]
[1742732868907,3.0,2014.0,2013.7,0.18350201]
[1742732869077,3.0,2014.0,2013.6,5.4438]
[1742732869277,3.0,2014.0,2013.7,0.18350201]
[1742732869478,3.0,2014.0,2013.6,5.4438]
[1742732869682,3.0,2014.0,2013.7,0.18350201]
[1742732869890,3.0,2014.0,2013.6,5.4438]
[1742732870091,3.0,2014.0,2013.7,0.18350201]
[1742732870308,3.0,2014.0,2013.6,5.4438]
[1742732870506,3.0,2014.0,2013.7,0.18350201]
[1742732870680,3.0,2014.0,2013.6,5.4438]
[1742732870879,3.0,2014.0,2013.7,0.18350201]
[1742732871080,3.0,2014.0,2013.6,5.4438]
[1742732871410,3.0,2014.0,2013.7,0.18350201]
[1742732871777,3.0,2014.0,2013.6,10.41002]
[1742732871981,3.0,2014.0,2013.8,0.18325338]
[1742732872187,3.0,2014.0,2013.7,0.18350201]
[1742732872383,3.0,2014.0,2013.9,0.18300477]
[1742732872613,0.7955,2013.9,2013.8,0.18325338]
[1742732872812,0.7955,2013.9,2013.6,9.62022]
[1742732874116,0.7955,2013.9,2013.6,4.96622]
[1742732874285,0.7955,2013.9,2013.6,4.654]
[1742732875315,0.7955,2013.9,2013.7,0.18350201]
[1742732875521,0.7955,2013.9,2013.6,4.654]
[1742732875691,0.7955,2013.9,2013.8,0.18325338]
[1742732876010,7.96525,2014.0,2013.6,4.654]
[1742732876210,0.7955,2013.9,2013.8,0.18325338]
[1742732876411,5.76098,2013.9,2013.7,0.18350201]
[1742732876612,5.76098,2013.9,2013.8,0.18325338]
[1742732876999,5.76098,2013.9,2013.5,30.908]
[1742732877616,5.76098,2013.9,2013.6,0.18375066]
[1742732886320,0.7955,2013.9,2013.6,0.18375066]
[1742732893593,3.0,2014.0,2013.7,0.7518]
[1742732893801,3.0,2014.0,2013.8,4.96549]
[1742732894120,3.0,2014.0,2013.8,5.14915255]
[1742732894321,3.0,2014.0,2013.9,4.96548]
[1742732894529,3.0,2014.0,2013.9,5.90069394]
[1742732895827,5.7164,2014.4,2013.9,6.17581771]
[1742732895828,5.71628,2014.4,2013.9,6.17581771]
[1742732896031,3.0,2014.3,2013.9,10.55369394]
[1742732897008,3.752,2014.4,2014.0,4.96514]
[1742732897231,0.752,2014.4,2014.0,9.9302]
[1742732897429,5.73727,2014.6,2014.1,5.92926135]
[1742732897624,0.7735,2014.6,2014.2,4.96453]
[1742732897925,4.96353,2014.7,2014.3,0.18222885]
[1742732898126,4.96353,2014.7,2014.2,9.92914]
[1742732898325,3.0,2014.6,2014.3,0.18222885]
[1742732898535,3.0,2014.6,2014.2,4.96453]
[1742732898746,3.0,2014.6,2014.3,0.18222885]
[1742732899111,3.0,2014.6,2014.2,9.92911]
[1742732899307,3.0,2014.6,2014.3,4.83422885]
[1742732900220,8.73734,2014.6,2014.3,4.83422885]
[1742732901239,3.7735,2014.6,2014.3,4.83422885]
[1742732902114,8.73727,2014.6,2014.3,4.83422885]
[1742732903425,3.7735,2014.6,2014.3,4.83422885]
[1742732904633,8.73734,2014.6,2014.3,4.83422885]
[1742732904834,5.73775,2014.4,2014.3,0.18222885]
[1742732905215,5.73775,2014.4,2014.1,30.907]
[1742732905447,8.73775,2014.4,2014.3,0.17970638]
[1742732905621,10.107941,2014.4,2014.2,0.17995489]
[1742732905811,8.73775,2014.4,2014.3,0.17970638]
[1742732906022,8.73775,2014.4,2014.1,30.907]
[1742732906230,8.73775,2014.4,2014.2,0.17995489]
[1742732906748,3.7735,2014.4,2014.2,0.17995489]
[1742732906950,3.0,2014.4,2014.2,0.17995489]
[1742732908467,3.0,2014.4,2014.2,0.96125489]
[1742732910995,3.0,2014.4,2014.2,0.17995489]
[1742732911216,5.738,2014.3,2014.2,0.17995489]
[1742732914417,8.738,2014.3,2014.2,0.17995489]
[1742732915993,8.738,2014.3,2013.8,4.651]
[1742732915994,7.96479,2014.2,2013.8,4.651]
[1742732916196,11.39992087,2014.2,2013.8,4.651]
[1742732920108,11.39992087,2014.2,2013.9,0.18181842]
[1742732920302,11.39992087,2014.2,2013.8,4.651]
[1742732920608,11.39992087,2014.2,2013.9,0.18181842]
[1742732921008,11.39992087,2014.2,2013.8,4.651]
[1742732921218,11.39992087,2014.2,2014.0,0.18156984]
[1742732921383,11.39992087,2014.2,2013.9,0.18181842]
[1742732921579,11.39992087,2014.2,2014.1,5.14631128]
[1742732921580,3.43513087,2014.2,2014.1,5.14631128]
[1742732921787,3.43513087,2014.4,2014.1,4.96499]
[1742732921980,3.43513087,2014.4,2014.1,5.1464749]
[1742732922185,3.43513087,2014.4,2014.2,5.4218]
[1742732922385,3.43513087,2014.4,2014.3,4.9645]
[1742732922596,3.43513087,2014.7,2014.3,10.10998786]
[1742732922800,3.43513087,2014.7,2014.4,4.96417]
[1742732923090,3.43513087,2014.7,2014.5,0.18049093]
[1742732929125,3.43513087,2014.7,2014.3,31.21543]
[1742732929326,3.43513087,2014.7,2014.4,0.17908993]
[1742732937446,8.39873087,2014.7,2014.4,0.17908993]
[1742732938014,13.36244087,2014.7,2014.4,0.17908993]
[1742732938416,8.39873087,2014.7,2014.4,0.17908993]
[1742732940851,3.43513087,2014.7,2014.4,0.17908993]
[1742732941255,3.43513087,2014.7,2014.4,0.95288993]
[1742732946158,8.39866087,2014.7,2014.4,0.17908993]
[1742732946359,10.09883211,2014.7,2014.4,0.17908993]
[1742732947559,8.39866087,2014.7,2014.4,0.17908993]
[1742732950565,8.39866087,2014.7,2014.2,41.6523]
[1742732950862,8.39866087,2014.7,2014.3,0.17854783]
[1742732951247,3.43513087,2014.7,2014.3,4.96449]
[1742732951451,3.43513087,2014.7,2014.4,0.17802676]
[1742732953327,3.43513087,2014.7,2014.4,5.14225676]
[1742732953863,3.43513087,2014.7,2014.5,0.824]
[1742732954227,6.43513087,2014.7,2014.6,0.17752987]
[1742732959570,7.20643087,2014.7,2014.3,31.98571]
[1742732959773,7.20643087,2014.7,2014.4,0.17802676]
[1742732966800,6.43513087,2014.7,2014.4,0.17802676]
[1742732969203,6.43513087,2014.7,2014.4,5.14226676]
[1742732970687,6.43513087,2014.7,2014.5,4.96391]
[1742732971003,6.43513087,2014.7,2014.6,0.17755712]
[1742732976002,7.18883087,2014.7,2014.6,0.17755712]
[1742732976210,7.18883087,2014.7,2014.3,4.96448]
[1742732976506,7.18883087,2014.7,2014.4,0.17786326]
[1742732979183,12.15236087,2014.7,2014.2,36.61994]
[1742732979392,5.77409,2014.6,2014.3,0.17811174]
[1742732979589,0.8102,2014.5,2014.2,30.899]
[1742732979814,0.8102,2014.5,2014.3,0.17783919]
[1742732979978,5.77445,2014.4,2014.3,0.17783919]
[1742732980179,3.0,2014.3,2014.2,26.248]
[1742732980389,6.43513087,2014.3,2014.2,26.42630574]
[1742732989818,3.43513087,2014.3,2014.2,26.42630574]
[1742732990119,3.43513087,2014.3,2014.2,32.16055574]
[1742732992124,6.43513087,2014.6,2014.2,32.16055574]
[1742732992342,6.43513087,2014.6,2014.3,4.648]
[1742732992694,6.43513087,2014.6,2014.4,0.1796897]
[1742732993094,11.39891087,2014.6,2014.4,0.1796897]
[1742732994006,6.43513087,2014.6,2014.4,0.1796897]
[1742732994527,3.43513087,2014.6,2014.4,0.1796897]
[1742732995597,8.39890087,2014.6,2014.4,0.1796897]
[1742732998730,13.36286087,2014.6,2014.4,0.1796897]
[1742732999229,14.78200696,2014.6,2014.4,0.1796897]
[1742732999538,5.7931,2014.3,2014.2,26.248]
[1742733003825,9.22823087,2014.3,2014.2,26.248]
[1742733007854,3.7906,2014.0,2013.1,4.96726]
[1742733008054,4.96612,2013.7,2013.2,10.39291]
[1742733008557,4.96612,2013.7,2013.2,5.4257]
[1742733008721,5.75691,2013.6,2013.2,5.4257]
[1742733009471,0.7906,2013.8,2013.2,5.47536835]
[1742733009751,8.40065087,2013.9,2013.5,0.7777]
[1742733009915,3.43513087,2013.9,2013.5,0.7777]
[1742733010109,3.43513087,2013.9,2013.5,5.74402]
[1742733010616,8.40062087,2013.9,2013.5,0.7777]
[1742733011160,3.43513087,2013.9,2013.5,0.7777]
[1742733011327,3.43513087,2013.9,2013.5,5.74414]
[1742733011945,3.43513087,2013.9,2013.6,4.96618]
[1742733012146,3.43513087,2013.9,2013.5,31.99917]
[1742733014847,3.43513087,2013.9,2013.5,31.99909]
[1742733015054,3.43513087,2013.9,2013.5,31.99901]
[1742733015347,3.43513087,2013.9,2013.6,4.9661]
[1742733016124,4.96507,2014.1,2013.6,4.96603]
[1742733016753,12.19050087,2014.2,2013.7,4.96592]
[1742733016926,17.15536087,2014.2,2013.7,4.96592]
[1742733017252,17.15536087,2014.2,2013.8,0.14074462]
[1742733017452,4.965,2014.1,2013.8,0.14074462]
[1742733017649,4.96525,2014.0,2013.8,0.14074462]
[1742733017839,4.96525,2014.0,2013.5,36.96544]
[1742733018041,4.96525,2014.0,2013.9,0.1413099]
[1742733018221,4.96505,2014.1,2013.6,4.9662]
[1742733018642,9.93024,2014.1,2013.7,0.14262097]
[1742733018821,6.35770814,2014.1,2013.7,0.14262097]
[1742733019032,4.96505,2014.1,2013.8,0.14237234]
[1742733019453,4.96505,2014.1,2013.6,4.9662]
[1742733019630,4.96505,2014.1,2013.9,0.14212373]
[1742733020027,4.96505,2014.1,2013.6,4.9662]
[1742733020231,4.96505,2014.1,2014.0,0.14187515]
[1742733020428,6.78223293,2014.1,2014.0,0.14187515]
[1742733020641,6.78223293,2014.1,2013.6,4.9662]
[1742733020816,4.96505,2014.1,2014.0,0.14187515]
[1742733021016,4.96505,2014.1,2013.6,4.9662]
[1742733021317,4.96505,2014.1,2013.7,0.14262097]
[1742733021517,4.96505,2014.1,2013.6,4.9662]
[1742733021751,4.96505,2014.1,2013.8,0.14237234]
[1742733021951,4.96505,2014.1,2013.7,0.14262097]
[1742733022120,4.96505,2014.1,2013.9,0.14212373]
[1742733022320,4.96505,2014.1,2013.6,4.9662]
[1742733022520,4.96505,2014.1,2013.7,0.14262097]
[1742733022733,4.96505,2014.1,2013.6,4.9662]
[1742733022932,4.96505,2014.1,2013.8,0.14237234]
[1742733023143,4.96505,2014.1,2013.7,0.14262097]
[1742733023453,4.96505,2014.1,2013.9,0.14212373]
[1742733023650,4.96505,2014.1,2013.8,0.14237234]
[1742733023817,4.96505,2014.1,2013.6,4.9662]
[1742733024221,4.96505,2014.1,2013.7,0.14262097]